fUSD/lending_fUSD_20240331
["ID","MTS","AMOUNT","RATE_DAILY","PERIOD"]
[321136672,1711907478823,-500.0,0.00056986,120]
[321136673,1711907478834,-500.0,0.00056986,120]
[321136674,1711907478844,-500.0,0.00056986,120]
[321136675,1711907478854,-500.0,0.00056986,120]
[321136676,1711907478864,-895.49,0.00056986,120]
[321136677,1711907478874,-744.4,0.00056986,120]
[321136678,1711907478883,-452.59,0.00056986,120]
[321136679,1711907478893,-200.0,0.00056987,2]
[321136680,1711907478903,-7270.0,0.00057,117]
[321136681,1711907478912,-201.02051,0.00057,120]
[321136682,1711907478922,-39492.33,0.00057029,6]
[321136683,1711907478932,-600.0,0.00057153,120]
[321136684,1711907478942,-245.48,0.0005726,120]
[321136685,1711907478952,-500.0,0.0005726,120]
[321136686,1711907478962,-500.0,0.0005726,120]
[321136687,1711907478971,-500.0,0.0005726,120]
[321136688,1711907478981,-500.0,0.0005726,120]
[321136689,1711907478991,-500.0,0.0005726,120]
[321136690,1711907479000,-700.81,0.0005726,120]
[321136691,1711907479010,-500.0,0.0005726,120]
[321136692,1711907479020,-505.88,0.0005726,120]
[321136693,1711907479030,-500.0,0.0005726,120]
[321136694,1711907479039,-500.0,0.0005726,120]
[321136695,1711907479049,-485.86,0.0005726,120]
[321136696,1711907479059,-4907.73,0.0005726,120]
[321136697,1711907479069,-500.0,0.0005726,50]
[321136698,1711907479078,-1609.87,0.0005726,120]
[321136699,1711907479088,-500.0,0.0005726,120]
[321136700,1711907479097,-990.64,0.0005726,120]
[321136701,1711907479107,-500.0,0.0005726,120]
[321136702,1711907479117,-500.0,0.0005726,120]
[321136703,1711907479126,-500.0,0.0005726,120]
[321136704,1711907479136,-10457.21,0.0005726,120]
[321136705,1711907479146,-500.0,0.0005726,120]
[321136706,1711907479156,-964.49,0.0005726,120]
[321136707,1711907479166,-500.0,0.0005726,120]
[321136708,1711907479176,-500.0,0.0005726,120]
[321136709,1711907479185,-755.7,0.0005726,120]
[321136710,1711907479194,-500.0,0.0005726,120]
[321136711,1711907479203,-722.56,0.0005726,120]
[321136712,1711907479213,-500.0,0.0005726,120]
[321136713,1711907479222,-500.0,0.0005726,120]
[321136714,1711907479231,-1026.37,0.0005726,120]
[321136715,1711907479240,-1126.75,0.0005726,120]
[321136716,1711907479249,-1688.27,0.0005726,21]
[321136717,1711907479259,-500.0,0.0005726,120]
[321136718,1711907479268,-500.0,0.0005726,120]
[321136719,1711907479278,-660.13,0.0005726,120]
[321136720,1711907479287,-500.0,0.0005726,120]
[321136721,1711907479297,-500.0,0.0005726,120]
[321136722,1711907479307,-500.0,0.0005726,120]
[321136723,1711907479316,-500.0,0.0005726,120]
[321136724,1711907479329,-1092.39,0.0005726,120]
[321136725,1711907479342,-14029.33,0.0005726,120]
[321136726,1711907479352,-500.0,0.0005726,120]
[321136727,1711907479362,-1975.75,0.0005726,120]
[321136728,1711907479371,-500.0,0.0005726,120]
[321136729,1711907479381,-556.16076445,0.0005726,120]
[321136730,1711907479390,-500.0,0.0005726,120]
[321136731,1711907479400,-500.0,0.0005726,120]
[321136732,1711907479410,-500.0,0.0005726,120]
[321136733,1711907479421,-10099.07,0.0005726,120]
[321136734,1711907479430,-546.81,0.0005726,120]
[321136735,1711907479440,-500.0,0.0005726,120]
[321136736,1711907479449,-596.1,0.0005726,120]
[321136737,1711907479459,-530.69,0.0005726,120]
[321136738,1711907479468,-500.0,0.0005726,120]
[321136739,1711907479478,-500.0,0.0005726,120]
[321136740,1711907479488,-500.0,0.0005726,120]
[321136741,1711907479498,-446.3,0.0005726,120]
[321136742,1711907479508,-500.0,0.0005726,120]
[321136743,1711907479517,-500.0,0.0005726,120]
[321136744,1711907479527,-500.0,0.0005726,120]
[321136745,1711907479537,-500.0,0.0005726,120]
[321136746,1711907479547,-500.0,0.0005726,120]
[321136747,1711907479557,-5131.78,0.0005726,120]
[321136748,1711907479565,-500.0,0.0005726,120]
[321136749,1711907479575,-1715.12,0.0005726,120]
[321136750,1711907479584,-500.0,0.0005726,120]
[321136751,1711907479594,-500.0,0.0005726,120]
[321136752,1711907479603,-500.0,0.0005726,120]
[321136753,1711907479612,-500.0,0.0005726,120]
[321136754,1711907479622,-182.28553299,0.0005726,120]
[321136755,1711907479631,-626.85,0.0005726,120]
[321136756,1711907479640,-947.24,0.0005726,120]
[321136757,1711907479650,-500.0,0.0005726,120]
[321136758,1711907479660,-500.0,0.0005726,120]
[321136759,1711907479671,-500.0,0.0005726,120]
[321136760,1711907479681,-500.0,0.0005726,120]
[321136761,1711907479691,-649.68,0.0005726,120]
[321136762,1711907479700,-500.0,0.0005726,120]
[321136763,1711907479709,-916.81,0.0005726,120]
[321136764,1711907479719,-6434.68,0.0005726,120]
[321136765,1711907479729,-2281.86,0.0005726,120]
[321136766,1711907479739,-500.0,0.0005726,120]
[321136767,1711907479749,-500.0,0.0005726,120]
[321136768,1711907479759,-1094.52,0.0005726,120]
[321136769,1711907479769,-1655.18,0.0005726,120]
[321136770,1711907479779,-531.28,0.0005726,120]
[321136771,1711907479788,-1439.29,0.0005726,120]
[321136772,1711907479799,-500.0,0.0005726,120]
[321136773,1711907479808,-500.0,0.0005726,120]
[321136774,1711907479818,-1210.67,0.0005726,120]
[321136775,1711907479829,-627.19,0.0005726,120]
[321136776,1711907479839,-2658.74,0.0005726,120]
[321136777,1711907479849,-500.0,0.0005726,120]
[321136778,1711907479858,-3592.37,0.0005726,120]
[321136779,1711907479868,-500.0,0.0005726,120]
[321136780,1711907479878,-476.74,0.0005726,120]
[321136781,1711907479888,-611.83,0.0005726,120]
[321136782,1711907480023,-500.0,0.0005726,120]
[321136783,1711907480036,-500.0,0.0005726,120]
[321136784,1711907480046,-1276.31,0.0005726,120]
[321136785,1711907480057,-500.0,0.0005726,120]
[321136786,1711907480068,-2818.95,0.0005726,120]
[321136787,1711907480078,-577.42,0.0005726,120]
[321136788,1711907480088,-500.0,0.0005726,120]
[321136789,1711907480098,-1477.96,0.0005726,120]
[321136790,1711907480108,-1654.56,0.0005726,120]
[321136791,1711907480117,-591.88,0.0005726,120]
[321136792,1711907480127,-811.9,0.0005726,120]
[321136793,1711907480137,-500.0,0.0005726,120]
[321136794,1711907480147,-540.65,0.0005726,120]
[321136795,1711907480157,-1667.23,0.0005726,120]
[321136796,1711907480167,-500.0,0.0005726,120]
[321136797,1711907480176,-500.0,0.0005726,120]
[321136798,1711907480186,-500.0,0.0005726,120]
[321136799,1711907480195,-500.0,0.0005726,120]
[321136800,1711907480205,-718.34,0.0005726,120]
[321136801,1711907480215,-500.0,0.0005726,120]
[321136802,1711907480224,-1412.62,0.0005726,120]
[321136803,1711907480233,-505.8,0.0005726,120]
[321136804,1711907480243,-2163.44,0.0005726,120]
[321136805,1711907480253,-502.6,0.0005726,120]
[321136806,1711907480262,-4640.93,0.0005726,120]
[321136807,1711907480272,-2308.94,0.0005726,120]
[321136808,1711907480282,-4439.46,0.0005726,120]
[321136809,1711907480292,-713.74,0.0005726,120]
[321136810,1711907480302,-574.37,0.0005726,120]
[321136811,1711907480313,-818.49,0.0005726,120]
[321136812,1711907480324,-2084.69,0.0005726,120]
[321136813,1711907480335,-2318.29,0.0005726,120]
[321136814,1711907480348,-1422.03,0.0005726,120]
[321136815,1711907480357,-500.0,0.0005726,120]
[321136816,1711907480367,-500.0,0.0005726,2]
[321136817,1711907480377,-500.0,0.0005726,120]
[321136818,1711907480388,-4939.3,0.0005726,120]
[321136819,1711907480397,-500.0,0.0005726,120]
[321136820,1711907480406,-500.0,0.0005726,120]
[321136821,1711907480415,-6488.58,0.0005726,120]
[321136822,1711907480426,-576.51176362,0.0005726,120]
[321136823,1711907480436,-500.0,0.0005726,120]
[321136824,1711907480448,-3218.95,0.0005726,120]
[321136825,1711907480458,-1667.88,0.0005726,120]
[321136826,1711907480469,-677.03,0.0005726,120]
[321136827,1711907480480,-513.19,0.0005726,120]
[321136828,1711907480490,-848.39,0.0005726,120]
[321136829,1711907480500,-2067.47,0.0005726,120]
[321136830,1711907480511,-830.01,0.0005726,120]
[321136831,1711907480522,-500.0,0.0005726,120]
[321136832,1711907480533,-1115.96,0.0005726,120]
[321136833,1711907480545,-722.46,0.0005726,120]
[321136834,1711907480555,-2662.12,0.0005726,120]
[321136835,1711907480565,-714.15,0.0005726,120]
[321136836,1711907480576,-1147.71,0.0005726,120]
[321136837,1711907480584,-1997.29,0.0005726,120]
[321136838,1711907480594,-7535.35,0.0005726,120]
[321136839,1711907480604,-500.0,0.0005726,120]
[321136840,1711907480614,-500.0,0.0005726,120]
[321136841,1711907480624,-500.0,0.0005726,120]
[321136842,1711907480633,-3990.2,0.0005726,120]
[321136843,1711907480643,-2974.84,0.0005726,120]
[321136844,1711907480653,-500.0,0.0005726,7]
[321136845,1711907480664,-624.32,0.0005726,120]
[321136846,1711907480673,-500.0,0.0005726,120]
[321136847,1711907480683,-500.0,0.0005726,120]
[321136848,1711907480693,-500.0,0.0005726,120]
[321136849,1711907480703,-614.73,0.0005726,120]
[321136850,1711907480712,-500.0,0.0005726,120]
[321136851,1711907480723,-500.0,0.0005726,120]
[321136852,1711907480733,-500.0,0.0005726,120]
[321136853,1711907480743,-500.0,0.0005726,120]
[321136854,1711907480752,-500.0,0.0005726,120]
[321136855,1711907480762,-895.49,0.0005726,120]
[321136856,1711907480772,-744.4,0.0005726,120]
[321136857,1711907480782,-161.39,0.000573,30]
[321136858,1711907480793,-155.91,0.000573,14]
[321136859,1711907480803,-151.0,0.00057315,120]
[321136860,1711907480812,-1000.0,0.00057329,120]
[321136861,1711907480822,-1001.7,0.00057345,2]
[321136862,1711907480832,-1130.0,0.00057475,120]
[321136863,1711907480843,-1067.0486023,0.00057475,120]
[321136864,1711907480853,-151.0,0.00057479,120]
[321136865,1711907480862,-210.51918287,0.00057534,120]
[321136866,1711907480872,-500.0,0.00057534,120]
[321136867,1711907480882,-335.2,0.00057534,120]
[321136868,1711907480892,-500.0,0.00057534,120]
[321136869,1711907480902,-500.0,0.00057534,120]
[321136870,1711907480912,-700.81,0.00057534,120]
[321136871,1711907480921,-500.0,0.00057534,120]
[321136872,1711907480932,-505.88,0.00057534,120]
[321136873,1711907480941,-500.0,0.00057534,120]
[321136874,1711907480952,-500.0,0.00057534,120]
[321136875,1711907480962,-4907.73,0.00057534,120]
[321136876,1711907480971,-500.0,0.00057534,50]
[321136877,1711907480981,-1609.87,0.00057534,120]
[321136878,1711907480992,-500.0,0.00057534,120]
[321136879,1711907481002,-990.64,0.00057534,120]
[321136880,1711907481011,-500.0,0.00057534,120]
[321136881,1711907481021,-500.0,0.00057534,120]
[321136882,1711907481030,-500.0,0.00057534,120]
[321136883,1711907481040,-10457.21,0.00057534,120]
[321136884,1711907481049,-500.0,0.00057534,120]
[321136885,1711907481060,-964.49,0.00057534,120]
[321136886,1711907481070,-500.0,0.00057534,120]
[321136887,1711907481079,-500.0,0.00057534,120]
[321136888,1711907481089,-755.7,0.00057534,120]
[321136889,1711907481098,-500.0,0.00057534,120]
[321136890,1711907481108,-722.56,0.00057534,120]
[321136891,1711907481118,-500.0,0.00057534,120]
[321136892,1711907481128,-500.0,0.00057534,120]
[321136893,1711907481137,-1026.37,0.00057534,120]
[321136894,1711907481146,-1126.75,0.00057534,120]
[321136895,1711907481156,-1688.27,0.00057534,21]
[321136896,1711907481165,-500.0,0.00057534,120]
[321136897,1711907481174,-500.0,0.00057534,120]
[321136898,1711907481184,-660.13,0.00057534,120]
[321136899,1711907481194,-500.0,0.00057534,120]
[321136900,1711907481204,-500.0,0.00057534,120]
[321136901,1711907481214,-500.0,0.00057534,120]
[321136902,1711907481223,-500.0,0.00057534,120]
[321136903,1711907481234,-1092.39,0.00057534,120]
[321136904,1711907481244,-14029.33,0.00057534,120]
[321136905,1711907481254,-625.93359422,0.00057534,120]
[321136906,1711907481264,-1975.75,0.00057534,120]
[321136907,1711907481275,-500.0,0.00057534,120]
[321136908,1711907481284,-500.0,0.00057534,120]
[321136909,1711907481295,-500.0,0.00057534,120]
[321136910,1711907481305,-475.32,0.00057534,120]
[321136911,1711907481314,-10099.07,0.00057534,120]
[321136912,1711907481325,-546.81,0.00057534,120]
[321136913,1711907481335,-500.0,0.00057534,120]
[321136914,1711907481346,-500.0,0.00057534,120]
[321136915,1711907481356,-500.0,0.00057534,120]
[321136916,1711907481365,-500.0,0.00057534,120]
[321136917,1711907481375,-500.0,0.00057534,120]
[321136918,1711907481386,-500.0,0.00057534,120]
[321136919,1711907481396,-500.0,0.00057534,120]
[321136920,1711907481405,-500.0,0.00057534,120]
[321136921,1711907481414,-500.0,0.00057534,120]
[321136922,1711907481426,-5131.78,0.00057534,120]
[321136923,1711907481435,-1715.12,0.00057534,120]
[321136924,1711907481445,-500.0,0.00057534,120]
[321136925,1711907481455,-500.0,0.00057534,120]
[321136926,1711907481465,-500.0,0.00057534,120]
[321136927,1711907481474,-500.0,0.00057534,120]
[321136928,1711907481483,-500.0,0.00057534,120]
[321136929,1711907481493,-626.85,0.00057534,120]
[321136930,1711907481502,-947.24,0.00057534,120]
[321136931,1711907481512,-500.0,0.00057534,120]
[321136932,1711907481523,-500.0,0.00057534,120]
[321136933,1711907481533,-500.0,0.00057534,120]
[321136934,1711907481543,-500.0,0.00057534,120]
[321136935,1711907481553,-649.68,0.00057534,120]
[321136936,1711907481563,-500.0,0.00057534,120]
[321136937,1711907481573,-916.81,0.00057534,120]
[321136938,1711907481583,-6434.68,0.00057534,120]
[321136939,1711907481593,-2281.86,0.00057534,120]
[321136940,1711907481603,-500.0,0.00057534,120]
[321136941,1711907481613,-500.0,0.00057534,120]
[321136942,1711907481622,-1094.52,0.00057534,120]
[321136943,1711907481631,-1655.18,0.00057534,120]
[321136944,1711907481641,-531.28,0.00057534,120]
[321136945,1711907481651,-1439.29,0.00057534,120]
[321136946,1711907481660,-500.0,0.00057534,120]
[321136947,1711907481670,-500.0,0.00057534,120]
[321136948,1711907481679,-1210.67,0.00057534,120]
[321136949,1711907481689,-627.19,0.00057534,120]
[321136950,1711907481698,-2658.74,0.00057534,120]
[321136951,1711907481708,-500.0,0.00057534,120]
[321136952,1711907481718,-3592.37,0.00057534,120]
[321136953,1711907481727,-500.0,0.00057534,120]
[321136954,1711907481737,-611.83,0.00057534,120]
[321136955,1711907481748,-500.0,0.00057534,120]
[321136956,1711907481757,-392.79,0.00057534,120]
[321136957,1711907481767,-1276.31,0.00057534,120]
[321136958,1711907481776,-500.0,0.00057534,120]
[321136959,1711907481786,-2818.95,0.00057534,120]
[321136960,1711907481796,-577.42,0.00057534,120]
[321136961,1711907481805,-500.0,0.00057534,120]
[321136962,1711907481816,-1477.96,0.00057534,120]
[321136963,1711907481826,-1654.56,0.00057534,120]
[321136964,1711907481835,-591.88,0.00057534,120]
[321136965,1711907481845,-811.9,0.00057534,120]
[321136966,1711907481855,-500.0,0.00057534,120]
[321136967,1711907481867,-540.65,0.00057534,120]
[321136968,1711907481886,-1667.23,0.00057534,120]
[321136969,1711907481896,-500.0,0.00057534,120]
[321136970,1711907481916,-641.39,0.00057534,120]
[321136971,1711907481925,-500.0,0.00057534,120]
[321136972,1711907481935,-500.0,0.00057534,120]
[321136973,1711907481945,-718.34,0.00057534,120]
[321136974,1711907481955,-500.0,0.00057534,120]
[321136975,1711907481964,-1412.62,0.00057534,120]
[321136976,1711907481974,-505.8,0.00057534,120]
[321136977,1711907481983,-2163.44,0.00057534,120]
[321136978,1711907481993,-4640.93,0.00057534,120]
[321136979,1711907482002,-2308.94,0.00057534,120]
[321136980,1711907482012,-4439.46,0.00057534,120]
[321136981,1711907482022,-713.74,0.00057534,120]
[321136982,1711907482032,-574.37,0.00057534,120]
[321136983,1711907482042,-818.49,0.00057534,120]
[321136984,1711907482051,-2084.69,0.00057534,120]
[321136985,1711907482061,-2318.29,0.00057534,120]
[321136986,1711907482071,-1422.03,0.00057534,120]
[321136987,1711907482081,-500.0,0.00057534,120]
[321136988,1711907482091,-500.0,0.00057534,2]
[321136989,1711907482100,-500.0,0.00057534,120]
[321136990,1711907482110,-4939.3,0.00057534,120]
[321136991,1711907482119,-500.0,0.00057534,120]
[321136992,1711907482128,-500.0,0.00057534,120]
[321136993,1711907482138,-6488.58,0.00057534,120]
[321136994,1711907482149,-500.0,0.00057534,120]
[321136995,1711907482159,-3218.95,0.00057534,120]
[321136996,1711907482169,-1667.88,0.00057534,120]
[321136997,1711907482178,-677.03,0.00057534,120]
[321136998,1711907482187,-513.19,0.00057534,120]
[321136999,1711907482197,-848.39,0.00057534,120]
[321137000,1711907482207,-2067.47,0.00057534,120]
[321137001,1711907482216,-830.01,0.00057534,120]
[321137002,1711907482226,-500.0,0.00057534,120]
[321137003,1711907482236,-1115.96,0.00057534,120]
[321137004,1711907482245,-722.46,0.00057534,120]
[321137005,1711907482254,-2662.12,0.00057534,120]
[321137006,1711907482264,-714.15,0.00057534,120]
[321137007,1711907482273,-1147.71,0.00057534,120]
[321137008,1711907482283,-1997.29,0.00057534,120]
[321137009,1711907482294,-7535.35,0.00057534,120]
[321137010,1711907482304,-500.0,0.00057534,120]
[321137011,1711907482313,-500.0,0.00057534,120]
[321137012,1711907482324,-500.0,0.00057534,120]
[321137013,1711907482334,-3990.2,0.00057534,120]
[321137014,1711907482347,-2974.84,0.00057534,120]
[321137015,1711907482357,-500.0,0.00057534,7]
[321137016,1711907482492,-624.32,0.00057534,120]
[321137017,1711907482502,-500.0,0.00057534,120]
[321137018,1711907482514,-500.0,0.00057534,120]
[321137019,1711907482525,-500.0,0.00057534,120]
[321137020,1711907482536,-614.73,0.00057534,120]
[321137021,1711907482547,-500.0,0.00057534,120]
[321137022,1711907482558,-500.0,0.00057534,120]
[321137023,1711907482568,-500.0,0.00057534,120]
[321137024,1711907482579,-500.0,0.00057534,120]
[321137025,1711907482589,-500.0,0.00057534,120]
[321137026,1711907482600,-895.49,0.00057534,120]
[321137027,1711907482610,-744.4,0.00057534,120]
[321137028,1711907482620,-49084.69,0.00057673,6]
[321137029,1711907482632,-26664.22,0.00057673,6]
[321137030,1711907482643,-16512.28,0.00057673,6]
[321137031,1711907482653,-45588.15,0.00057673,6]
[321137032,1711907482663,-45332.38,0.00057673,6]
[321137033,1711907482673,-35970.13,0.00057687,6]
[321137034,1711907482683,-11808.73,0.00057687,6]
[321137035,1711907482693,-36948.46,0.00057687,6]
[321137036,1711907482702,-39298.39,0.00057687,6]
[321137037,1711907482712,-32589.58,0.00057687,6]
[321137038,1711907482723,-26076.13,0.00057687,6]
[321137039,1711907482733,-4093.64,0.00057687,6]
[321137040,1711907482743,-420.20850959,0.00057744,36]
[321137041,1711907482753,-318.37388614,0.00057784,14]
[321137042,1711907482763,-214.26,0.00057808,120]
[321137043,1711907482773,-500.0,0.00057808,120]
[321137044,1711907482784,-500.0,0.00057808,120]
[321137045,1711907482794,-700.81,0.00057808,120]
[321137046,1711907482804,-500.0,0.00057808,120]
[321137047,1711907482814,-505.88,0.00057808,120]
[321137048,1711907482825,-500.0,0.00057808,120]
[321137049,1711907482835,-500.0,0.00057808,120]
[321137050,1711907482845,-4907.73,0.00057808,120]
[321137051,1711907482855,-500.0,0.00057808,50]
[321137052,1711907482864,-1609.87,0.00057808,120]
[321137053,1711907482874,-500.0,0.00057808,120]
[321137054,1711907482884,-990.64,0.00057808,120]
[321137055,1711907482895,-500.0,0.00057808,120]
[321137056,1711907482904,-500.0,0.00057808,120]
[321137057,1711907482915,-500.0,0.00057808,120]
[321137058,1711907482925,-10457.21,0.00057808,120]
[321137059,1711907482935,-500.0,0.00057808,120]
[321137060,1711907482945,-964.49,0.00057808,120]
[321137061,1711907482956,-500.0,0.00057808,120]
[321137062,1711907482966,-500.0,0.00057808,120]
[321137063,1711907482978,-755.7,0.00057808,120]
[321137064,1711907482988,-500.0,0.00057808,120]
[321137065,1711907482999,-722.56,0.00057808,120]
[321137066,1711907483010,-500.0,0.00057808,120]
[321137067,1711907483021,-500.0,0.00057808,120]
[321137068,1711907483031,-1026.37,0.00057808,120]
[321137069,1711907483041,-1126.75,0.00057808,120]
[321137070,1711907483051,-1688.27,0.00057808,21]
[321137071,1711907483062,-500.0,0.00057808,120]
[321137072,1711907483071,-500.0,0.00057808,120]
[321137073,1711907483081,-660.13,0.00057808,120]
[321137074,1711907483091,-500.0,0.00057808,120]
[321137075,1711907483101,-500.0,0.00057808,120]
[321137076,1711907483112,-500.0,0.00057808,120]
[321137077,1711907483121,-257.88,0.00057808,120]
[321137078,1711907483131,-1092.39,0.00057808,120]
[321137079,1711907483141,-14029.33,0.00057808,120]
[321137080,1711907483150,-1975.75,0.00057808,120]
[321137081,1711907483160,-500.0,0.00057808,120]
[321137082,1711907483169,-500.0,0.00057808,120]
[321137083,1711907483179,-500.0,0.00057808,120]
[321137084,1711907483189,-10099.07,0.00057808,120]
[321137085,1711907483199,-546.81,0.00057808,120]
[321137086,1711907483208,-500.0,0.00057808,120]
[321137087,1711907483218,-500.0,0.00057808,120]
[321137088,1711907483228,-500.0,0.00057808,120]
[321137089,1711907483238,-500.0,0.00057808,120]
[321137090,1711907483247,-500.0,0.00057808,120]
[321137091,1711907483257,-552.53,0.00057808,120]
[321137092,1711907483267,-500.0,0.00057808,120]
[321137093,1711907483277,-500.0,0.00057808,120]
[321137094,1711907483287,-500.0,0.00057808,120]
[321137095,1711907483296,-5131.78,0.00057808,120]
[321137096,1711907483306,-1715.12,0.00057808,120]
[321137097,1711907483317,-568.09,0.00057808,120]
[321137098,1711907483327,-500.0,0.00057808,120]
[321137099,1711907483340,-301.71,0.00057808,120]
[321137100,1711907483351,-213.8,0.00057808,120]
[321137101,1711907483361,-420.33471239,0.00057808,120]
[321137102,1711907483372,-626.85,0.00057808,120]
[321137103,1711907483383,-947.24,0.00057808,120]
[321137104,1711907483394,-500.0,0.00057808,120]
[321137105,1711907483403,-500.0,0.00057808,120]
[321137106,1711907483414,-500.0,0.00057808,120]
[321137107,1711907483423,-500.0,0.00057808,120]
[321137108,1711907483433,-649.68,0.00057808,120]
[321137109,1711907483444,-500.0,0.00057808,120]
[321137110,1711907483454,-916.81,0.00057808,120]
[321137111,1711907483464,-6434.68,0.00057808,120]
[321137112,1711907483474,-2281.86,0.00057808,120]
[321137113,1711907483484,-500.0,0.00057808,120]
[321137114,1711907483493,-500.0,0.00057808,120]
[321137115,1711907483503,-1094.52,0.00057808,120]
[321137116,1711907483514,-1655.18,0.00057808,120]
[321137117,1711907483524,-531.28,0.00057808,120]
[321137118,1711907483533,-1439.29,0.00057808,120]
[321137119,1711907483544,-500.0,0.00057808,120]
[321137120,1711907483553,-500.0,0.00057808,120]
[321137121,1711907483563,-1210.67,0.00057808,120]
[321137122,1711907483574,-627.19,0.00057808,120]
[321137123,1711907483584,-2658.74,0.00057808,120]
[321137124,1711907483594,-500.0,0.00057808,120]
[321137125,1711907483604,-3592.37,0.00057808,120]
[321137126,1711907483613,-500.0,0.00057808,120]
[321137127,1711907483623,-611.83,0.00057808,120]
[321137128,1711907483633,-500.0,0.00057808,120]
[321137129,1711907483642,-1276.31,0.00057808,120]
[321137130,1711907483651,-500.0,0.00057808,120]
[321137131,1711907483661,-2818.95,0.00057808,120]
[321137132,1711907483671,-577.42,0.00057808,120]
[321137133,1711907483680,-175.16343517,0.00057808,120]
[321137134,1711907483690,-1477.96,0.00057808,120]
[321137135,1711907483699,-1654.56,0.00057808,120]
[321137136,1711907483709,-591.88,0.00057808,120]
[321137137,1711907483719,-811.9,0.00057808,120]
[321137138,1711907483729,-500.0,0.00057808,120]
[321137139,1711907483738,-540.65,0.00057808,120]
[321137140,1711907483748,-1667.23,0.00057808,120]
[321137141,1711907483758,-500.0,0.00057808,120]
[321137142,1711907483767,-500.0,0.00057808,120]
[321137143,1711907483776,-500.0,0.00057808,120]
[321137144,1711907483786,-718.34,0.00057808,120]
[321137145,1711907483796,-500.0,0.00057808,120]
[321137146,1711907483806,-1412.62,0.00057808,120]
[321137147,1711907483815,-505.8,0.00057808,120]
[321137148,1711907483825,-2163.44,0.00057808,120]
[321137149,1711907483834,-4640.93,0.00057808,120]
[321137150,1711907483843,-2308.94,0.00057808,120]
[321137151,1711907483854,-4439.46,0.00057808,120]
[321137152,1711907483863,-713.74,0.00057808,120]
[321137153,1711907483873,-574.37,0.00057808,120]
[321137154,1711907483882,-818.49,0.00057808,120]
[321137155,1711907483892,-2084.69,0.00057808,120]
[321137156,1711907483901,-2318.29,0.00057808,120]
[321137157,1711907483910,-1422.03,0.00057808,120]
[321137158,1711907483920,-500.0,0.00057808,120]
[321137159,1711907483929,-543.94,0.00057808,2]
[321137160,1711907483939,-500.0,0.00057808,120]
[321137161,1711907483948,-4939.3,0.00057808,120]
[321137162,1711907483958,-500.0,0.00057808,120]
[321137163,1711907483967,-500.0,0.00057808,120]
[321137164,1711907483977,-6488.58,0.00057808,120]
[321137165,1711907483986,-500.0,0.00057808,120]
[321137166,1711907483996,-3218.95,0.00057808,120]
[321137167,1711907484005,-1667.88,0.00057808,120]
[321137168,1711907484015,-677.03,0.00057808,120]
[321137169,1711907484024,-513.19,0.00057808,120]
[321137170,1711907484033,-848.39,0.00057808,120]
[321137171,1711907484043,-2067.47,0.00057808,120]